[Event "Romanian Team Blitz Open 2022"]
[Site "Sebes"]
[Date "2022.12.04"]
[Round "8.10"]
[White "David, Alexandru-Vasile"]
[Black "Nevednichy, Vladislav"]
[Result "1-0"]
[ECO "A34"]
[WhiteElo "2404"]
[BlackElo "2499"]
[Annotator "TA"]
[PlyCount "102"]
[EventDate "2022.12.04"]
[EventType "blitz"]
[EventCountry "ROU"]
[SourceTitle "playchess.com"]
[Source "ChessBase"]
[SourceQuality "1"]
[TimeControl "180+2"]

{[%evp 11,102,50,61,55,60,53,45,62,82,56,60,51,71,66,94,87,103,64,83,56,50,56,72,66,76,68,100,93,203,206,203,195,202,202,299,300,300,296,306,262,251,256,270,298,346,266,377,373,383,360,347,328,394,393,392,392,370,362,354,233,550,547,608,589,791,582,799,789,798,797,948,941,2203,2541,2383,1889,2197,2081,1916,1941,1112,980,29974,7247,29982,29983,29979,29979,29989,29988,29994,29993,29994]} 1. e4 {[%emt 0:00:01]} c5 {[%emt 0:00:11]} 2. Nf3 {[%emt 0:00:02]} e6 {[%emt 0:00:01]} 3. d4 {[%emt 0:00:06]} cxd4 {[%emt 0:00:01]} 4. Nxd4 a6 {[%emt 0:02:57]} 5. c4 {[%emt 0:00:02]} b6 {[%emt 0:00:00]} 6. Nc3 {[%emt 0:00:10]} Bb7 {[%emt 0:00:00]} 7. Be3 {[%emt 0:00:03] White is more active. A34: Symmetrical English: 2 Nc3, lines with ...d5.} Qc7 {[%emt 0:00:00]} 8. Be2 {[%emt 0:00:05]} Nf6 {[%emt 0:00:00]} 9. f3 {[%emt 0:00:02] White is slightly better.} Bc5 {[%emt 0:00:00]} 10. Qd2 {[%emt 0:00:04]} Nc6 {[%emt 0:00:00] [#]} 11. O-O-O $146 {[%emt 0:00:32]} ({Predecessor:} 11. Nxc6 Bxe3 12. Qxe3 Bxc6 13. O-O Rb8 14. Rac1 Ba8 15. Rfd1 d6 16. Rd2 Ke7 17. Rcd1 {½-½ (32) Naroditsky,D (2633)-Kamsky,G (2683) Saint Louis 2015}) 11... Nxd4 {[%emt 0:00:00]} 12. Bxd4 {[%emt 0:00:01]} e5 {[%emt 0:00:00]} 13. Bxc5 {[%emt 0:00:18]} bxc5 {[%emt 0:00:00]} 14. Kb1 {[%emt 0:00:05]} (14. Na4 {feels hotter.} Ke7 15. g4 d6 16. h4) 14... O-O {[%emt 0:00:00]} 15. g4 {[%emt 0:00:01]} Bc6 {[%emt 0:00:00]} 16. h4 {[%emt 0:00:02][%cal Bh2h4,Bh4h5,Bh5h6][%mdl 32]} Rab8 {[%emt 0:00:00]} 17. Qe3 {[%emt 0:00:06]} Qb6 {[%emt 0:00:00][%csl Gb8][%cal Rb6b2] White stays focused until the end.} 18. Rd2 {[%emt 0:00:01]} Rb7 {[%emt 0:00:00]} 19. h5 {[%emt 0:00:03]} Rfb8 {[%emt 0:00:00] [#]} (19... Ne8 $16 {keeps fighting.}) 20. h6 $1 $18 {[%emt 0:00:44]} g6 {[%emt 0:00:00]} 21. Qg5 {[%emt 0:00:02][%csl LRe5,LRf6] Against d6} Ne8 {[%emt 0:00:00]} 22. Qxe5 {[%emt 0:00:03]} Qc7 {[%emt 0:00:00]} (22... f6 {was worth a try.} 23. Qf4 (23. Qe7 d6 $16) 23... Qd8) 23. Qxc5 {[%emt 0:00:12]} Qf4 {[%emt 0:00:00]} 24. Qd4 {[%emt 0:00:03]} a5 {[%emt 0:00:00]} 25. c5 {[%emt 0:00:11]} Rb4 {[%emt 0:00:05]} 26. Qd3 {[%emt 0:00:06]} a4 {[%emt 0:00:05]} 27. a3 {[%emt 0:00:07]} Rb3 {[%emt 0:00:03]} 28. Ka1 {[%emt 0:00:01] Hoping for Qd4.} Nc7 {[%emt 0:00:08]} (28... R8b5 $142 29. Qd4 (29. Bd1 Rxb2 30. Rxb2 Qc1+ 31. Qb1 Qxc3 $16) 29... Rxc5) 29. Qd6 {[%emt 0:00:07]} ({Not} 29. Qd4 Ne6 30. Qd6 Qxd6 31. cxd6 R3b6 $18) 29... Ne6 {[%emt 0:00:10]} 30. Bc4 {[%emt 0:00:06]} Qxd6 {[%emt 0:00:09]} 31. cxd6 {[%emt 0:00:08]} Nc5 {[%emt 0:00:03]} 32. Rhh2 {[%emt 0:00:10]} R3b6 {[%emt 0:00:02]} 33. Nd5 {[%emt 0:00:03]} Bxd5 {[%emt 0:00:03]} 34. Rxd5 {[%emt 0:00:01]} ({Weaker is} 34. Bxd5 Nb3+ 35. Bxb3 axb3 $18) 34... Ne6 {[%emt 0:00:07]} 35. Ra5 {[%emt 0:00:08]} Nf4 $2 {[%emt 0:00:02]} (35... Rxd6 {is tougher.} 36. Rxa4 Kf8) 36. Rd2 {[%emt 0:00:02]} Rc6 {[%emt 0:00:00]} 37. Rxa4 {[%emt 0:00:18]} Rbc8 38. Bb3 {[%emt 0:00:00]} g5 {[%emt 0:00:02]} 39. Ra5 {[%emt 0:00:00]} Kf8 {[%emt 0:00:04]} 40. Rxg5 {[%emt 0:00:00]} Rc1+ {[%emt 0:00:01]} 41. Ka2 {[%emt 0:00:00] Rg7 is the strong threat.} Rf1 {[%emt 0:00:01]} 42. Rf5 {[%emt 0:00:00]} Ne6 {[%emt 0:00:02]} 43. Bxe6 {[%emt 0:00:00]} dxe6 {[%emt 0:00:00][%mdl 4096] Endgame [#] KRR-KRR} 44. Rc5 $3 {[%emt 0:00:00][%cal Rc5c8][%mdl 512]} Rd8 {[%emt 0:00:03]} 45. Rc3 {[%emt 0:00:02]} e5 {[%emt 0:00:02]} 46. a4 {[%emt 0:00:02][%cal Ba3a4,Ba4a5,Ba5a6,Ba6a7][%mdl 32] Threatens to win with a5.} f6 {[%emt 0:00:00]} 47. a5 {[%emt 0:00:02] d7 would kill now.} Kf7 {[%emt 0:00:04]} 48. d7 {[%emt 0:00:02] White mates.} Ke7 {[%emt 0:00:01]} 49. a6 {[%emt 0:00:00]} Rh1 {[%emt 0:00:03]} 50. Rc8 {[%emt 0:00:02]} Rh3 {[%emt 0:00:01]} 51. a7 {[%emt 0:00:02]} Rxf3 {[%emt 0:00:03] Weighted Error Value: White=0.22 (precise) /Black=0.35} 1-0

[Event "Romanian Team Blitz Open 2022"]
[Site "Sebes"]
[Date "2022.12.04"]
[Round "8.11"]
[White "Stoleriu, George"]
[Black "Ghimpu, Samuel-Timotei"]
[Result "1-0"]
[ECO "A01"]
[WhiteElo "2389"]
[BlackElo "2455"]
[Annotator "TA RC"]
[PlyCount "145"]
[EventDate "2022.12.04"]
[EventType "blitz"]
[EventCountry "ROU"]
[SourceTitle "playchess.com"]
[Source "ChessBase"]
[SourceQuality "1"]
[TimeControl "180+2"]

{[%evp 9,145,-8,-6,0,3,-28,-12,-31,-34,-34,-27,-82,-91,-81,-85,-83,-30,-39,-36,-35,-29,-33,47,36,43,0,0,-40,-44,-44,-40,-42,-44,-279,-81,-70,-75,-154,-147,-154,-27,-20,-9,-15,-11,-8,0,0,0,0,5,-8,0,0,0,-6,0,0,0,-11,0,-9,33,-18,60,69,77,76,70,56,62,60,186,186,185,171,151,149,145,94,94,95,122,66,66,66,847,816,673,122,491,122,122,122,1610,0,1,0,1299,0,33,33,41,51,51,0,74,0,2100,2108,1877,1613,29953,12216,29967,29969,29968,29969,29970,29972,29972,29971,29973,9,29974,29975,29975,29975,29978,29979,29979,29979,29979,29980,29981,29982,29984,29985]} 1. b3 {[%emt 0:00:01]} e5 {[%emt 0:00:03]} 2. Bb2 {[%emt 0:00:01]} Nc6 {[%emt 0:00:01]} 3. e3 {[%emt 0:00:00]} Nf6 {[%emt 0:00:02]} 4. Bb5 {[%emt 0:00:09]} Qe7 {[%emt 0:00:01]} 5. Bxc6 {[%emt 0:00:14]} dxc6 {[%emt 0:00:03]} 6. d3 {[%emt 0:00:00] A01: Nimzowitsch-Larsen Opening.} h5 {[%emt 0:00:07] [#]} 7. Nf3 $146 {[%emt 0:00:04]} ({Predecessor:} 7. Nd2 Bg4 8. Ngf3 Nd7 9. h3 Bxf3 10. Qxf3 O-O-O 11. O-O-O g6 12. e4 Bh6 13. Kb1 {0-1 (44) Bruned,Y (2286)-To,N (2353) Chess.com INT 2021}) 7... e4 {[%emt 0:00:22]} 8. dxe4 {[%emt 0:00:01] The position is equal.} Nxe4 {[%emt 0:00:02]} 9. Nbd2 {[%emt 0:00:00]} Bf5 {[%emt 0:00:10]} 10. Nxe4 {[%emt 0:00:10]} (10. Qe2 $11 {remains equal.}) 10... Qxe4 $17 {[%emt 0:00:09]} 11. Rc1 {[%emt 0:00:07]} Bb4+ {[%emt 0:00:16]} 12. c3 {[%emt 0:00:01]} Rd8 {[%emt 0:00:02]} (12... Bc5 $17) 13. Qe2 $11 {[%emt 0:00:01]} Be7 {[%emt 0:00:10] A strong pair of Bishops.} 14. O-O {[%emt 0:00:03]} h4 {[%emt 0:00:03]} 15. h3 {[%emt 0:00:02]} g5 {[%emt 0:00:08]} ({Better is} 15... Bg6 $15) 16. c4 $14 {[%emt 0:00:05]} Rg8 {[%emt 0:00:04]} 17. Nd4 {[%emt 0:00:15]} (17. Ne5 {with more complications.} g4 18. hxg4 Bxg4 19. f3) 17... g4 $36 {[%emt 0:00:54][%mdl 2048] aiming for ...c5. Black is pushing.} 18. hxg4 {[%emt 0:00:05]} Qxg4 {[%emt 0:00:25]} 19. Qxg4 {[%emt 0:01:17]} Bxg4 {[%emt 0:00:02]} 20. f3 {[%emt 0:00:01] Inhibits c5.} Bc8 {[%emt 0:00:12]} 21. Kf2 $2 {[%emt 0:00:13]} (21. e4 $15) 21... c5 $2 {[%emt 0:00:05]} (21... h3 $19 {has better winning chances.} 22. g3 Bh4 $1 23. gxh4 Rg2+ 24. Ke1 Rxb2) 22. Ne2 $17 {[%emt 0:00:11]} Rd2 {[%emt 0:00:06]} 23. Bc3 {[%emt 0:00:19]} (23. Rb1 $142) 23... Rxa2 {[%emt 0:00:01] ...h3 is the strong threat.} 24. Ra1 {[%emt 0:00:00] [#]} Rxa1 {[%emt 0:00:08]} (24... Rxg2+ $1 $17 {[%mdl 512]} 25. Kxg2 Rxe2+ 26. Kg1 Rxe3) 25. Rxa1 $11 {[%emt 0:00:01]} a6 {[%emt 0:00:01]} 26. Nf4 $1 {[%emt 0:00:01]} c6 {[%emt 0:00:11]} 27. Rd1 {[%emt 0:00:06]} Be6 {[%emt 0:00:03]} 28. Nh5 {[%emt 0:00:08]} Rg6 {[%emt 0:00:04]} 29. Nf4 {[%emt 0:00:04]} Rg5 {[%emt 0:00:02]} 30. e4 {[%emt 0:00:08]} Rg8 {[%emt 0:00:01]} 31. Nh5 {[%emt 0:00:02]} Rg6 {[%emt 0:00:01]} 32. Nf4 {[%emt 0:00:01]} Rg8 {[%emt 0:00:01]} 33. Nh5 {[%emt 0:00:00]} Rg6 {[%emt 0:00:04] Against Nf6+} 34. Nf4 {[%emt 0:00:10]} Rg8 {[%emt 0:00:01]} 35. Be5 {[%emt 0:00:04]} b5 {[%emt 0:00:03]} 36. Ra1 {[%emt 0:00:04]} (36. Nxe6 $14 fxe6 37. Ra1) 36... bxc4 {[%emt 0:00:02]} (36... f6 $11 37. Bc3 (37. Nxe6 fxe5 38. Nc7+ Kd7 $15) 37... Bc8) 37. Nxe6 $14 {[%emt 0:00:02]} fxe6 {[%emt 0:00:02]} 38. bxc4 $11 {[%emt 0:00:01][%mdl 4096] Endgame KRB-KRB} Rg5 {[%emt 0:00:03]} 39. Bf4 {[%emt 0:00:01]} Rh5 {[%emt 0:00:01]} 40. Rxa6 {[%emt 0:00:02]} h3 {[%emt 0:00:02]} ({Black should try} 40... e5 $1 $14 41. Be3 Kd7) 41. gxh3 $18 ({Inferior is} 41. Rxc6 h2 42. Bxh2 (42. Rxe6 $2 {loses.} h1=Q $19) 42... Rxh2 $11) 41... Rxh3 {[%emt 0:00:01]} 42. Rxc6 {[%emt 0:00:02]} Kd7 {[%emt 0:00:02]} 43. Rc7+ Kd8 {[#]} 44. Ra7 {[%emt 0:00:02]} (44. Kg2 $142 $1 {[%cal Rg2h3]} Rh6 45. Bxh6 Kxc7 46. Kg3) 44... Rh1 $16 {[%emt 0:00:03]} 45. Be3 {[%emt 0:00:05] White is more active.} Rb1 {[%emt 0:00:02]} 46. Ra5 {[%emt 0:00:03]} (46. Kg3 $16) 46... Rb4 $1 $14 {[%emt 0:00:04]} 47. Bxc5 {[%emt 0:00:02]} Bxc5+ $4 {[%emt 0:00:03][%mdl 8192]} (47... Bh4+ $14 48. Ke3 Rxc4) 48. Rxc5 {[%emt 0:00:01] KR-KR} Kd7 {[%emt 0:00:01]} 49. e5 $2 {[%emt 0:00:03]} (49. Ke3 $18 {and the rest is easy.} Rb3+ 50. Kf4) 49... Rb1 $2 {[%emt 0:00:02][%mdl 8192]} (49... Rb2+ $16 50. Kg3 Rc2) 50. Ke3 $2 {[%emt 0:00:01]} (50. Ra5 $18 {and White stays clearly on top. Strongly threatening Ke3.} Rb2+ 51. Ke3) 50... Re1+ {[%emt 0:00:01]} 51. Kf4 {[%emt 0:00:01]} Rh1 $2 {[%emt 0:00:07][%mdl 8192]} (51... Rc1 $16 52. Ra5 Rxc4+ 53. Kg5 Rc3) 52. Kg5 $2 {[%emt 0:00:03]} ({White should play} 52. Rb5 $18 Rh4+ 53. Kg5 Rxc4 54. Rb7+ Kc6 55. Ra7) 52... Rg1+ $11 {[%emt 0:00:00]} 53. Kf4 $2 {[%emt 0:00:02][%mdl 8192]} (53. Kh6 $11 Rf1 54. Ra5 Rxf3 55. Kh5) 53... Rh1 $1 $18 {[%emt 0:00:00]} 54. Ke3 $2 {[%emt 0:00:03]} (54. Ra5 $18 Rg1 55. Ra7+ Kc6 56. Re7) 54... Re1+ $1 $14 {[%emt 0:00:00]} 55. Kd2 {[%emt 0:00:01]} Rf1 {[%emt 0:00:01]} 56. Ke2 {[%emt 0:00:00]} Rc1 {[%emt 0:00:02]} 57. Ke3 {[%emt 0:00:07]} Re1+ $1 {[%emt 0:00:02]} 58. Kf4 $2 {[%emt 0:00:02][%mdl 8192]} (58. Kd4 $16) 58... Rh1 $1 $18 {[%emt 0:00:05]} 59. Ra5 {[%emt 0:00:01]} Rh4+ {[%emt 0:00:01] [#]} 60. Kg5 $1 {[%emt 0:00:01]} Rxc4 {[%emt 0:00:02]} 61. f4 {[%emt 0:00:04]} (61. Ra7+ $142 Kd8 62. Kf6 Rf4+ 63. Kxe6 Rxf3 64. Ra8+ Kc7 65. Ke7 Re3 66. e6) 61... Rc8 {[%emt 0:00:03]} 62. Ra7+ {[%emt 0:00:01]} Kc6 {[%emt 0:00:01]} 63. Kf6 {[%emt 0:00:01]} Kd5 {[%emt 0:00:03]} 64. Rd7+ {[%emt 0:00:04]} Ke4 {[%emt 0:00:01]} 65. Kxe6 {[%emt 0:00:02]} Kxf4 {[%emt 0:00:01]} 66. Rd4+ $2 {[%emt 0:00:04]} (66. Kf6 {mates} Rf8+ 67. Ke7 Rf5 68. e6 Ke5 69. Rb7 Ke4 70. Kd7 Rd5+ 71. Ke8) 66... Ke3 $2 {[%emt 0:00:04][%mdl 8192]} (66... Kg5 $11) 67. Ra4 {[%emt 0:00:01] White mates.} Re8+ {[%emt 0:00:00]} 68. Kf6 {[%emt 0:00:00]} Rh8 {[%emt 0:00:04]} 69. e6 {[%emt 0:00:01][%cal Be5e6,Be6e7][%mdl 32]} Rh6+ {[%emt 0:00:00]} 70. Kf7 Rh7+ {[%emt 0:00:01]} 71. Kg6 {[%emt 0:00:02]} Rh8 {[%emt 0:00:01]} 72. e7 {[%emt 0:00:01]} Re8 {[%emt 0:00:02]} 73. Kf7 {[%emt 0:00:01] White used his chance.   Weighted Error Value: White=0.72/Black=0.48} 1-0

[Event "Romanian Team Blitz Open 2022"]
[Site "Sebes"]
[Date "2022.12.04"]
[Round "8.12"]
[White "Talu, Mircea"]
[Black "Zubcu, Vlad-George"]
[Result "1-0"]
[ECO "A06"]
[WhiteElo "2327"]
[BlackElo "2135"]
[Annotator "TA"]
[PlyCount "63"]
[EventDate "2022.12.04"]
[EventType "blitz"]
[EventCountry "ROU"]
[SourceTitle "playchess.com"]
[Source "ChessBase"]
[SourceQuality "1"]
[TimeControl "180+2"]

{[%evp 9,63,6,10,9,1,-14,-16,-29,-21,-26,-29,-36,-31,-59,-46,-92,-58,-65,-72,-72,-46,-50,-55,-87,-59,-89,-48,-51,-43,-50,-18,0,0,0,25,0,0,0,6,-208,-200,-202,243,256,568,554,537,488,729,721,706,681,666,654,663,650]} 1. Nf3 {[%emt 0:00:01]} d5 {[%emt 0:00:00]} 2. b3 {[%emt 0:00:02]} Bg4 {[%emt 0:00:04]} 3. Bb2 {[%emt 0:00:06]} Bxf3 {[%emt 0:00:01]} 4. gxf3 {[%emt 0:00:09]} Nf6 {[%emt 0:00:11]} 5. e3 {[%emt 0:00:04]} Nbd7 {[%emt 0:00:03]} 6. f4 {[%emt 0:00:02] A06: Réti Opening: 1 Nf3 d5.} e6 {[%emt 0:00:12]} 7. Rg1 {[%emt 0:00:03]} g6 {[%emt 0:00:20]} 8. d3 {[%emt 0:00:02] [#] The position is equal.} Bg7 $146 {[%emt 0:00:07]} ({Predecessor:} 8... Bd6 9. Nd2 Qe7 10. Bh3 O-O-O 11. Nf3 Kb8 12. Ne5 Rhf8 13. a4 Ne8 14. d4 c5 {0-1 (32) Aranguiz Olave,E (1679)-Cruz,C (2564) Antofagasta 2019}) 9. Nd2 {[%emt 0:00:02]} O-O {[%emt 0:00:02]} 10. Nf3 {[%emt 0:00:02]} c5 {[%emt 0:00:05]} 11. Bg2 {[%emt 0:00:26]} Qc7 {[%emt 0:00:05]} ({Of course not} 11... Ng4 12. Bxg7 Kxg7 13. Qd2 $11) 12. Ne5 {[%emt 0:00:07]} (12. Qe2 $15) 12... Rfd8 {[%emt 0:00:19]} 13. Nxd7 {[%emt 0:01:06]} Rxd7 {[%emt 0:00:10]} 14. Be5 {[%emt 0:00:04] Prevents d4.} Qb6 {[%emt 0:00:18]} 15. h4 {[%emt 0:00:16]} Nh5 {[%emt 0:00:31]} 16. Bxg7 {[%emt 0:00:29]} Nxg7 {[%emt 0:00:01]} 17. Bf3 {[%emt 0:00:01]} Qd8 {[%emt 0:00:24]} 18. h5 $1 {[%emt 0:00:06]} Qf6 {[%emt 0:00:01]} 19. hxg6 {[%emt 0:00:06]} hxg6 {[%emt 0:00:05]} 20. Ke2 {[%emt 0:00:02]} d4 {[%emt 0:00:12]} 21. Rh1 {[%emt 0:00:07]} e5 {[%emt 0:00:13]} 22. fxe5 {[%emt 0:00:10]} (22. Qf1 {feels hotter.} Ne6 23. Qh3 Re8 24. Qh7+) 22... Qxe5 {[%emt 0:00:01] [#] Strongly threatening ...dxe3.} 23. Qf1 {[%emt 0:00:02] Hoping for Qh3.} dxe3 {[%emt 0:00:19] aiming for ...Qc3.} 24. fxe3 $2 {[%emt 0:00:07]} (24. Qh3 $1 $11 exf2+ 25. Kxf2 Qd4+ 26. Kg2) 24... Nf5 $19 {[%emt 0:00:01]} 25. Qh3 {[%emt 0:00:05] [#] And now Qh7+ would win.} Qg7 {[%emt 0:00:01][%mdl 8192] Inhibits Qh7+.} (25... Ng3+ $1 $19 {avoids the disaster.} 26. Kf2 Nxh1+ 27. Rxh1 Rad8) 26. Be4 $18 {[%emt 0:00:02] Really sharp!} Re7 $2 {[%emt 0:00:04]} (26... Rd6 27. Bxf5 (27. Bxb7 Re8 $16) (27. Rag1 Rf6 $18) 27... gxf5) 27. Bxf5 {[%emt 0:00:01] White is clearly winning.} Rae8 {[%emt 0:00:02]} 28. Be4 f5 (28... Re5 $142 29. Qd7 R5e7) 29. Bd5+ {[%emt 0:00:01]} Kf8 {[%emt 0:00:01]} 30. Qh8+ {[%emt 0:00:01]} Qxh8 31. Rxh8+ {[%emt 0:00:01]} Kg7 {[%emt 0:00:01]} 32. Rxe8 {[%emt 0:00:01] Weighted Error Value: White=0.20 (precise) /Black=0.46} 1-0

[Event "Romanian Team Blitz Open 2022"]
[Site "Sebes"]
[Date "2022.12.04"]
[Round "8.13"]
[White "Patrascu, Catalin-Lucian"]
[Black "Miron, Lucian-Costin"]
[Result "0-1"]
[ECO "C77"]
[WhiteElo "2279"]
[BlackElo "2510"]
[Annotator "TA"]
[PlyCount "61"]
[EventDate "2022.12.04"]
[EventType "blitz"]
[EventCountry "ROU"]
[SourceTitle "playchess.com"]
[Source "ChessBase"]
[SourceQuality "1"]
[TimeControl "180+2"]

{[%evp 16,61,27,29,44,23,21,25,37,13,43,42,43,45,39,42,47,35,45,41,42,39,62,46,43,62,157,109,128,118,135,111,152,121,133,98,87,110,133,0,70,80,77,0,97,-634,-576,-29998]} 1. e4 {[%emt 0:00:02]} e5 {[%emt 0:00:01]} 2. Nf3 {[%emt 0:00:01]} Nc6 {[%emt 0:00:01]} 3. Bb5 {[%emt 0:00:01]} a6 {[%emt 0:00:01]} 4. Ba4 {[%emt 0:00:01]} Nf6 {[%emt 0:00:01]} 5. O-O {[%emt 0:00:02]} Be7 {[%emt 0:00:01]} 6. d3 {[%emt 0:00:01]} d6 {[%emt 0:00:02]} 7. c3 {[%emt 0:00:05]} O-O {[%emt 0:00:03]} 8. Nbd2 {[%emt 0:00:05]} b5 {[%emt 0:00:01]} 9. Bc2 {[%emt 0:00:01]} Nb8 {[%emt 0:00:02] C77: Ruy Lopez: 3...a6 4 Ba4 Nf6, unusual lines.} 10. h3 {[%emt 0:00:03]} Bb7 {[%emt 0:00:03]} 11. Re1 {[%emt 0:00:01]} Nbd7 {[%emt 0:00:02] [#] White has an edge.} 12. a4 $146 {[%emt 0:00:06]} ({Predecessor:} 12. Nf1 Re8 13. Ng3 Bf8 14. d4 g6 15. a4 Bg7 16. d5 Nb6 17. a5 Nc8 18. c4 c5 19. b4 cxb4 20. Bd3 Nd7 21. cxb5 axb5 22. Bxb5 Ba6 23. Bxa6 Rxa6 24. Qa4 {1-0 (62) Korneev,O (2551)-Karpatchev,A (2416) Runavik 2018}) 12... Nc5 {[%emt 0:00:12]} 13. b4 {[%emt 0:00:10]} Nxa4 {[%emt 0:00:09]} 14. Bxa4 {[%emt 0:00:01]} bxa4 {[%emt 0:00:02]} 15. Qxa4 {[%emt 0:00:03]} Qd7 {[%emt 0:00:38]} 16. Nb3 {[%emt 0:00:10]} Bc6 {[%emt 0:00:40]} 17. Qa2 {[%emt 0:00:10]} Qc8 {[%emt 0:00:03]} 18. Na5 {[%emt 0:00:02]} Bd7 {[%emt 0:00:01]} 19. d4 {[%emt 0:00:27]} exd4 {[%emt 0:00:10]} 20. cxd4 {[%emt 0:00:09]} c5 {[%emt 0:00:07]} (20... c6 $14) 21. e5 {[%emt 0:00:39]} ({White should play} 21. bxc5 dxc5 22. d5) 21... dxe5 {[%emt 0:00:05]} 22. dxc5 {[%emt 0:00:04]} ({Resist} 22. dxe5 $6 Be6 23. Qe2 Nd5 $11) 22... e4 {[%emt 0:00:16]} 23. Ne5 {[%emt 0:00:28]} Be6 {[%emt 0:00:08]} 24. Qe2 {[%emt 0:00:10]} Re8 {[%emt 0:00:09]} 25. Nac4 {[%emt 0:00:09] Nb6 is the strong threat.} Qc7 {[%emt 0:00:54] [#] Against Nb6} 26. Bf4 $1 {[%emt 0:00:24] Strongly threatening Nb6.} Nd5 {[%emt 0:00:00][%csl LRb4,LRf4] Prevents Nb6.} 27. Bh2 {[%emt 0:00:00]} (27. Qxe4 $16 {[%cal Oc4b6] Hoping for Nb6!} Nxf4 28. Nb6 (28. Qxf4 f6 $14)) 27... Qb7 {[%emt 0:00:00] Prevents Nb6.} (27... Nxb4 $11 28. Nd6 Bxd6 29. cxd6 Qb7) 28. Qxe4 $14 {[%emt 0:00:09]} Qxb4 {[%emt 0:00:00]} 29. c6 {[%emt 0:00:11]} (29. Nb6 $16 Qxe4 30. Rxe4) 29... Bf6 {[%emt 0:00:04]} (29... Nc3 $11 30. Qd3 Rad8) 30. Nd7 $2 {[%emt 0:00:03][%mdl 8192] [#]} Bxd7 {[%emt 0:00:03]} 31. Qxd5 {[%emt 0:00:02] Weighted Error Value: White=0.52/Black=0.26 (precise)} 0-1

[Event "Romanian Team Blitz Open 2022"]
[Site "Sebes"]
[Date "2022.12.04"]
[Round "8.14"]
[White "Secheres, Adrian-Simion"]
[Black "Creanga, Robert-Ionut"]
[Result "1-0"]
[ECO "E11"]
[WhiteElo "2365"]
[BlackElo "2190"]
[Annotator "TA"]
[PlyCount "77"]
[EventDate "2022.12.04"]
[EventType "blitz"]
[EventCountry "ROU"]
[SourceTitle "playchess.com"]
[Source "ChessBase"]
[SourceQuality "1"]
[TimeControl "180+2"]

{[%evp 11,77,23,33,28,25,13,15,0,29,-4,-14,-8,-17,-15,-13,-15,0,-72,-72,-77,-85,-83,-84,-77,-77,-89,-77,-94,-60,-56,1,1,1,1,1,5,4,0,0,6,53,56,80,68,99,74,118,115,124,105,147,83,77,81,79,77,127,84,62,52,147,146,296,321,940,936,829,453]} 1. d4 {[%emt 0:00:02]} Nf6 {[%emt 0:00:01]} 2. c4 {[%emt 0:00:02]} e6 {[%emt 0:00:01]} 3. Nf3 {[%emt 0:00:01]} Bb4+ {[%emt 0:00:02]} 4. Bd2 {[%emt 0:00:02]} Qe7 {[%emt 0:00:02]} 5. g3 {[%emt 0:00:01]} Nc6 {[%emt 0:00:07]} 6. Nc3 {[%emt 0:00:01]} d5 {[%emt 0:00:08]} 7. Bg2 {[%emt 0:00:16] E11: Bogo-Indian.} dxc4 {[%emt 0:00:14] is now more promising than 7...0-0.} 8. O-O {[%emt 0:00:04]} O-O {[%emt 0:00:02]} 9. a3 {[%emt 0:00:04][%mdl 1024] White has compensation. The position is equal.} Bd6 {[%emt 0:00:16] [#]} 10. e4 $146 {[%emt 0:00:19]} ({Predecessor:} 10. Qa4 e5 11. d5 Nd4 12. Qxc4 c5 13. dxc6 Nxc6 14. Ng5 h6 15. Nge4 Nxe4 16. Bxe4 {½-½ (28) Andersson,M (2325)-Bjork,C (2310) Sweden 1993}) 10... e5 {[%emt 0:00:04]} 11. Bg5 {[%emt 0:02:32]} Bg4 {[%emt 0:02:27]} 12. Nd5 {[%emt 0:00:00]} Qd8 {[%emt 0:00:00]} 13. Bxf6 {[%emt 0:00:00]} gxf6 {[%emt 0:00:00]} 14. h3 {[%emt 0:00:00]} (14. dxe5 $11 Nxe5 15. Qe2) 14... Bxf3 $17 {[%emt 0:00:00]} 15. Qxf3 {[%emt 0:00:00]} Nxd4 {[%emt 0:00:00]} ({Much weaker is} 15... exd4 16. Rac1 $11) 16. Qh5 {[%emt 0:00:00]} c6 {[%emt 0:00:00]} 17. Ne3 {[%emt 0:00:00]} b5 {[%emt 0:00:00]} 18. Rad1 {[%emt 0:00:00][%cal Od1d4]} Kh8 {[%emt 0:00:00]} 19. Ng4 {[%emt 0:00:00]} Rg8 {[%emt 0:00:00]} 20. Nh6 {[%emt 0:00:00] [#]} Qe7 {[%emt 0:00:00]} 21. Nxf7+ $11 {[%emt 0:00:00]} Kg7 {[%emt 0:00:01]} 22. Nh6 {[%emt 0:00:00][%cal Bf7h6,Bh6f5,Bf5d6,Bd6b7,Bb7c5][%mdl 32]} Qe8 {[%emt 0:00:05]} (22... Kh8 {simplifies} 23. Nxg8 Rxg8 24. h4 Bc5) 23. Qxe8 {[%emt 0:00:00] Dancing on a razor blade.} (23. Qh4 {seems wilder.} Qe6 24. Nxg8 Rxg8 25. Qh5) 23... Rgxe8 {[%emt 0:00:05] [#]} (23... Raxe8 {simplifies} 24. Nf5+ Nxf5 25. exf5 Bc5) 24. Rxd4 $1 {[%emt 0:00:00][%mdl 64] Remove Defender} exd4 {[%emt 0:00:05]} 25. Nf5+ {[%emt 0:00:00]} Kg6 {[%emt 0:00:04]} (25... Kf8 $11 26. Nxd6 Re6) 26. Nxd6 $14 {[%emt 0:00:00]} Red8 {[%emt 0:00:03]} 27. Nb7 {[%emt 0:00:00] White is more active.} Rd7 {[%emt 0:00:02]} 28. Nc5 {[%emt 0:00:00]} Re7 {[%emt 0:00:02]} 29. f4 {[%emt 0:00:00]} Rd8 {[%emt 0:00:02] Inhibits e5.} 30. Kf2 {[%emt 0:00:00]} c3 {[%emt 0:00:03] [#]} 31. bxc3 {[%emt 0:00:00]} (31. Bf3 $142 $1) 31... dxc3 $16 {[%emt 0:00:01]} 32. Ke3 {[%emt 0:00:00] Hoping for Rc1.} Rd2 {[%emt 0:00:03]} 33. Bf3 {[%emt 0:00:00] Strongly threatening Rc1.} a5 {[%emt 0:00:01]} (33... Ra2 $142) 34. e5 {[%emt 0:00:00]} fxe5 {[%emt 0:00:02]} 35. Be4+ {[%emt 0:00:00]} Kg7 {[%emt 0:00:02]} (35... Kf6 $14) 36. f5 {[%emt 0:00:00] Threatens to win with f6+.} Kf6 {[%emt 0:00:03]} (36... Kh8 $16) 37. Bxc6 $18 {[%emt 0:00:00] Black must now prevent Ne4+.} Rh2 $2 {[%emt 0:00:08]} (37... Rd4) 38. Ne4+ {[%emt 0:00:00]} Kf7 {[%emt 0:00:00]} 39. Bd5+ {[%emt 0:00:00] Weighted Error Value: White=0.12 (very precise) /Black=0.30} ({Less strong is} 39. Bxb5 Rc7 40. Rc1 c2 $18) 1-0